fUSD/lending_fUSD_20250515
["ID","MTS","AMOUNT","RATE_DAILY","PERIOD"]
[361159632,1747312279967,-500.0,0.00013699,2]
[361159633,1747312279977,-500.0,0.00013699,2]
[361159634,1747312279986,-500.0,0.00013699,2]
[361159635,1747312279996,-259.75717948,0.00013699,2]
[361159636,1747312280005,-500.0,0.00013699,2]
[361159637,1747312280015,-500.0,0.00013699,2]
[361159638,1747312280024,-500.0,0.00013699,2]
[361159639,1747312280033,-500.0,0.00013699,2]
[361159640,1747312280043,-500.0,0.00013699,2]
[361159641,1747312280053,-500.0,0.00013699,2]
[361159642,1747312280062,-500.0,0.00013699,2]
[361159643,1747312280071,-500.0,0.00013699,2]
[361159644,1747312280080,-500.0,0.00013699,2]
[361159645,1747312280090,-500.0,0.00013699,2]
[361159646,1747312280103,-500.0,0.00013699,2]
[361159647,1747312280112,-500.0,0.00013699,2]
[361159648,1747312280122,-500.0,0.00013699,2]
[361159649,1747312280131,-500.0,0.00013699,2]
[361159650,1747312280141,-500.0,0.00013699,2]
[361159651,1747312280151,-500.0,0.00013699,2]
[361159652,1747312280161,-500.0,0.00013699,2]
[361159653,1747312280171,-500.0,0.00013699,2]
[361159654,1747312280181,-500.0,0.00013699,2]
[361159655,1747312280191,-500.0,0.00013699,2]
[361159656,1747312280200,-500.0,0.00013699,2]
[361159657,1747312280210,-500.0,0.00013699,2]
[361159658,1747312280220,-500.0,0.00013699,2]
[361159659,1747312280230,-504.20196249,0.00013699,2]
[361159660,1747312280239,-500.0,0.00013699,2]
[361159661,1747312280249,-500.0,0.00013699,2]
[361159662,1747312280259,-500.0,0.00013699,2]
[361159663,1747312280269,-500.0,0.00013699,2]
[361159664,1747312280279,-500.0,0.00013699,2]
[361159665,1747312280289,-500.0,0.00013699,2]
[361159666,1747312280299,-500.0,0.00013699,2]
[361159667,1747312280308,-500.0,0.00013699,2]
[361159668,1747312280318,-500.0,0.00013699,2]
[361159669,1747312280327,-500.0,0.00013699,2]
[361159670,1747312280337,-500.0,0.00013699,2]
[361159671,1747312280346,-7274.87212587,0.00013699,2]
[361159672,1747312280360,-7274.87212587,0.00013699,2]
[361159673,1747312280370,-7274.87212587,0.00013699,2]
[361159674,1747312280380,-7274.87212587,0.00013699,2]
[361159675,1747312280390,-7274.87212587,0.00013699,2]
[361159676,1747312280400,-7274.87212587,0.00013699,2]
[361159677,1747312280410,-7274.87212587,0.00013699,2]
[361159678,1747312280419,-7274.87212587,0.00013699,2]
[361159679,1747312280429,-7274.87212587,0.00013699,2]
[361159680,1747312280439,-7274.87212587,0.00013699,2]
[361159681,1747312280448,-7274.87212587,0.00013699,2]
[361159682,1747312280458,-7274.87212587,0.00013699,2]
[361159683,1747312280469,-7274.87212587,0.00013699,2]
[361159684,1747312280479,-7274.87212587,0.00013699,2]
[361159685,1747312280489,-7274.87212587,0.00013699,2]
[361159686,1747312280500,-7274.87212587,0.00013699,2]
[361159687,1747312280510,-7274.87212587,0.00013699,2]
[361159688,1747312280519,-7274.87212587,0.00013699,2]
[361159689,1747312280529,-7274.87212587,0.00013699,2]
[361159690,1747312280538,-7274.87212587,0.00013699,2]
[361159691,1747312280549,-7274.87212587,0.00013699,2]
[361159692,1747312280559,-7274.87212587,0.00013699,2]
[361159693,1747312280569,-7274.87212587,0.00013699,2]
[361159694,1747312280579,-7274.87212587,0.00013699,2]
[361159695,1747312280591,-7274.87212587,0.00013699,2]
[361159696,1747312280604,-7274.87212587,0.00013699,2]
[361159697,1747312280614,-7274.87212587,0.00013699,2]
[361159698,1747312280623,-7274.87212587,0.00013699,2]
[361159699,1747312280632,-7274.87212587,0.00013699,2]
[361159700,1747312280641,-7274.87212587,0.00013699,2]
[361159701,1747312280650,-7274.87212587,0.00013699,2]
[361159702,1747312280659,-7274.87212587,0.00013699,2]
[361159703,1747312280669,-7274.87212587,0.00013699,2]
[361159704,1747312280679,-7274.87212587,0.00013699,2]
[361159705,1747312280688,-7274.87212587,0.00013699,2]
[361159706,1747312280698,-7274.87212587,0.00013699,2]
[361159707,1747312280707,-7274.87212587,0.00013699,2]
[361159708,1747312280718,-5010.19532522,0.00013699,2]
[361159709,1747312281057,-500.0,0.00012226,2]
[361159710,1747312281067,-2264.67680065,0.00013699,2]
[361159711,1747312281077,-5014.90861917,0.00013699,2]
[361159712,1747312281107,-400.0,0.00012143,2]
[361159713,1747312281117,-2259.9635067,0.00013699,2]
[361159714,1747312281126,-7274.87212587,0.00013699,2]
[361159715,1747312281136,-7274.87212587,0.00013699,2]
[361159716,1747312281146,-7274.87212587,0.00013699,2]
[361159717,1747312281155,-7274.87212587,0.00013699,2]
[361159718,1747312281164,-7274.87212587,0.00013699,2]
[361159719,1747312281174,-7274.87212587,0.00013699,2]
[361159720,1747312281184,-7274.87212587,0.00013699,2]
[361159721,1747312281193,-7274.87212588,0.00013699,2]
[361159722,1747312281203,-7274.87212588,0.00013699,2]
[361159723,1747312281212,-7274.87212588,0.00013699,2]
[361159724,1747312281221,-7274.87212588,0.00013699,2]
[361159725,1747312281230,-7274.87212588,0.00013699,2]
[361159726,1747312281239,-7274.87212588,0.00013699,2]
[361159727,1747312281248,-250.0,0.000137,2]
[361159728,1747312281259,-250.0,0.000137,2]
[361159729,1747312281268,-250.0,0.000137,2]
[361159730,1747312281278,-250.0,0.000137,2]
[361159731,1747312281288,-250.0,0.000137,2]
[361159732,1747312281297,-250.0,0.000137,2]
[361159733,1747312281306,-250.0,0.000137,2]
[361159734,1747312281315,-289.3,0.000137,2]
[361159735,1747312281324,-7032.38,0.000137,2]
[361159736,1747312281334,-7032.38,0.000137,2]
[361159737,1747312281344,-436.25765087,0.00013721,2]
[361159738,1747312281357,-400.0,0.00013739,2]
[361159739,1747312281367,-400.0,0.00013739,2]
[361159740,1747312281377,-469.89,0.00013786,2]
[361159741,1747312281386,-499.13,0.00013786,2]
[361159742,1747312281396,-2415.52,0.00013786,2]
[361159743,1747312281406,-2561.98,0.00013786,2]
[361159744,1747312281415,-400.0,0.00013787,2]
[361159745,1747312281425,-483.79,0.00013787,2]
[361159746,1747312281434,-709.94,0.00013787,2]
[361159747,1747312281443,-400.0,0.00013787,2]
[361159748,1747312281452,-494.81,0.00013787,2]
[361159749,1747312281462,-481.22,0.00013787,2]
[361159750,1747312281472,-400.0,0.00013787,2]
[361159751,1747312281482,-419.11,0.00013787,2]
[361159752,1747312281492,-624.18,0.00013787,2]
[361159753,1747312281503,-400.0,0.00013787,2]
[361159754,1747312281513,-620.77,0.00013787,2]
[361159755,1747312281522,-400.0,0.00013787,2]
[361159756,1747312281532,-400.0,0.00013787,2]
[361159757,1747312281541,-440.9,0.00013787,2]
[361159758,1747312281551,-1038.52,0.00013787,2]
[361159759,1747312281562,-881.03,0.00013787,2]
[361159760,1747312281571,-501.16,0.00013787,2]
[361159761,1747312281582,-1344.14,0.00013787,2]
[361159762,1747312281591,-451.75,0.00013787,2]
[361159763,1747312281605,-400.0,0.00013787,2]
[361159764,1747312281615,-612.11,0.00013787,2]
[361159765,1747312281624,-462.96,0.00013787,2]
[361159766,1747312281634,-477.75,0.00013787,2]
[361159767,1747312281644,-400.0,0.00013787,2]
[361159768,1747312281654,-400.0,0.00013787,2]
[361159769,1747312281664,-439.58,0.00013787,2]
[361159770,1747312281673,-400.0,0.00013787,2]
[361159771,1747312281683,-576.82,0.00013787,2]
[361159772,1747312281693,-413.48,0.00013787,2]
[361159773,1747312281703,-546.12,0.00013787,2]
[361159774,1747312281712,-416.69,0.00013787,2]
[361159775,1747312281722,-505.41,0.00013787,2]
[361159776,1747312281731,-400.0,0.00013787,2]
[361159777,1747312281740,-400.0,0.00013787,2]
[361159778,1747312281750,-465.84,0.00013787,2]
[361159779,1747312281760,-400.0,0.00013787,2]
[361159780,1747312281770,-1045.24,0.00013787,2]
[361159781,1747312281780,-472.83,0.00013787,2]
[361159782,1747312281790,-400.0,0.00013787,2]
[361159783,1747312281800,-699.13,0.00013787,2]
[361159784,1747312281809,-999.87,0.00013787,2]
[361159785,1747312281819,-1258.7,0.00013787,2]
[361159786,1747312281830,-871.71,0.00013787,2]
[361159787,1747312281839,-400.0,0.00013787,2]
[361159788,1747312281850,-563.34,0.00013787,2]
[361159789,1747312281862,-522.13,0.00013787,2]
[361159790,1747312281872,-569.36,0.00013787,2]
[361159791,1747312281882,-467.55,0.00013787,2]
[361159792,1747312281891,-558.97,0.00013787,2]
[361159793,1747312281902,-995.06,0.00013787,2]
[361159794,1747312281913,-2978.01,0.00013787,2]
[361159795,1747312281923,-210.66092372,0.00013787,2]
[361159796,1747312281933,-961.53,0.00013787,2]
[361159797,1747312281943,-814.79,0.00013787,2]
[361159798,1747312281952,-400.0,0.00013787,2]
[361159799,1747312281962,-1150.65,0.00013787,2]
[361159800,1747312281972,-953.55,0.00013787,2]
[361159801,1747312281982,-945.18,0.00013787,2]
[361159802,1747312281992,-605.88,0.00013787,2]
[361159803,1747312282002,-400.0,0.00013787,2]
[361159804,1747312282011,-793.37,0.00013787,2]
[361159805,1747312282021,-400.0,0.00013787,2]
[361159806,1747312282031,-400.0,0.00013787,2]
[361159807,1747312282041,-400.0,0.00013787,2]
[361159808,1747312282051,-565.3,0.00013787,2]
[361159809,1747312282061,-3659.41,0.00013787,2]
[361159810,1747312282071,-400.0,0.00013787,2]
[361159811,1747312282081,-400.0,0.00013787,2]
[361159812,1747312282090,-586.1,0.00013787,2]
[361159813,1747312282105,-866.92,0.00013787,2]
[361159814,1747312282114,-1133.62,0.00013787,2]
[361159815,1747312282124,-400.0,0.00013787,2]
[361159816,1747312282133,-400.0,0.00013787,2]
[361159817,1747312282143,-896.17,0.00013787,2]
[361159818,1747312282153,-3422.62,0.00013787,2]
[361159819,1747312282163,-400.0,0.00013787,2]
[361159820,1747312282172,-400.0,0.00013787,2]
[361159821,1747312282182,-1508.16,0.00013787,2]
[361159822,1747312282191,-400.0,0.00013787,2]
[361159823,1747312282201,-400.0,0.00013787,2]
[361159824,1747312282210,-2309.39,0.00013787,2]
[361159825,1747312282219,-546.0,0.00013787,2]
[361159826,1747312282230,-521.69,0.00013787,2]
[361159827,1747312282240,-982.05,0.00013787,2]
[361159828,1747312282251,-499.46,0.00013787,2]
[361159829,1747312282261,-400.0,0.00013787,2]
[361159830,1747312282327,-2191.97,0.00013787,2]
[361159831,1747312282337,-957.61,0.00013787,2]
[361159832,1747312282347,-722.35,0.00013787,2]
[361159833,1747312282361,-400.0,0.00013787,2]
[361159834,1747312282371,-2080.12,0.00013787,2]
[361159835,1747312282381,-668.17,0.00013787,2]
[361159836,1747312282390,-400.0,0.00013787,2]
[361159837,1747312282400,-400.0,0.00013787,2]
[361159838,1747312282410,-400.0,0.00013787,2]
[361159839,1747312282419,-1597.82,0.00013787,2]
[361159840,1747312282429,-1630.72,0.00013787,2]
[361159841,1747312282439,-400.0,0.00013787,2]
[361159842,1747312282449,-3843.82,0.00013787,2]
[361159843,1747312282458,-598.25,0.00013787,2]
[361159844,1747312282469,-1950.93,0.00013787,2]
[361159845,1747312282479,-457.12,0.00013787,2]
[361159846,1747312282489,-922.32,0.00013787,2]
[361159847,1747312282502,-10611.15,0.00013787,2]
[361159848,1747312282513,-400.0,0.00013787,2]
[361159849,1747312282523,-400.0,0.00013787,2]
[361159850,1747312282533,-1108.85,0.00013787,2]
[361159851,1747312282543,-541.7,0.00013787,2]
[361159852,1747312282553,-501.52,0.00013787,2]
[361159853,1747312282564,-601.85,0.00013787,2]
[361159854,1747312282574,-589.76,0.00013787,2]
[361159855,1747312282584,-29073.02,0.00013787,2]
[361159856,1747312282593,-622.13,0.00013787,2]
[361159857,1747312282607,-400.0,0.00013787,2]
[361159858,1747312282616,-3250.93,0.00013787,2]
[361159859,1747312282627,-676.29,0.00013787,2]
[361159860,1747312282637,-2267.04,0.00013787,2]
[361159861,1747312282647,-530.87,0.00013787,2]
[361159862,1747312282656,-420.88,0.00013787,2]
[361159863,1747312282667,-796.59,0.00013787,2]
[361159864,1747312282676,-419.55,0.00013788,2]
[361159865,1747312282686,-400.0,0.00013788,2]
[361159866,1747312282696,-400.0,0.00013788,2]
[361159867,1747312282705,-448.46,0.00013788,2]
[361159868,1747312282715,-400.0,0.00013788,2]
[361159869,1747312282724,-400.0,0.00013788,2]
[361159870,1747312282734,-400.0,0.00013788,2]
[361159871,1747312282743,-400.0,0.00013788,2]
[361159872,1747312282753,-400.0,0.00013788,2]
[361159873,1747312282763,-516.78907661,0.00013788,2]
[361159874,1747312282773,-400.0,0.00013788,2]
[361159875,1747312282783,-572.49,0.00013788,2]
[361159876,1747312282792,-400.0,0.00013788,2]
[361159877,1747312282802,-455.44,0.00013788,2]
[361159878,1747312282812,-545.88,0.00013788,2]
[361159879,1747312282821,-400.0,0.00013788,2]
[361159880,1747312282831,-376.93819059,0.00013788,2]
[361159881,1747312282841,-613.99,0.00013788,2]
[361159882,1747312282855,-400.0,0.00013788,2]
[361159883,1747312282864,-559.8,0.00013788,2]
[361159884,1747312282873,-7018.63,0.00013788,2]
[361159885,1747312282884,-472.72,0.00013788,2]
[361159886,1747312282894,-1647.57,0.00013788,2]
[361159887,1747312282903,-400.0,0.00013788,2]
[361159888,1747312282914,-400.0,0.00013788,2]
[361159889,1747312282923,-582.36,0.00013788,2]
[361159890,1747312282933,-400.0,0.00013788,2]
[361159891,1747312282943,-1273.86,0.00013788,2]
[361159892,1747312282952,-707.6,0.00013788,2]
[361159893,1747312282962,-400.0,0.00013788,2]
[361159894,1747312282972,-847.58,0.00013788,2]
[361159895,1747312282981,-532.14,0.00013788,2]
[361159896,1747312282991,-178.54533564,0.00013788,2]
[361159897,1747312283001,-504.34,0.00013788,2]
[361159898,1747312283011,-539.45,0.00013788,2]
[361159899,1747312283022,-400.0,0.00013788,2]
[361159900,1747312283032,-400.0,0.00013788,2]
[361159901,1747312283041,-672.34,0.00013788,2]
[361159902,1747312283051,-400.0,0.00013788,2]
[361159903,1747312283061,-223.0315306,0.00013865,2]
[361159904,1747312283070,-826.96,0.00013872,2]
[361159905,1747312283080,-400.0,0.00013872,2]
[361159906,1747312283090,-400.0,0.00013872,2]
[361159907,1747312283099,-1048.33,0.00013872,2]
[361159908,1747312283115,-400.0,0.00013872,2]
[361159909,1747312283125,-400.0,0.00013872,2]
[361159910,1747312283134,-400.0,0.00013872,2]
[361159911,1747312283144,-423.63,0.00013872,2]
[361159912,1747312283154,-535.8,0.00013872,2]
[361159913,1747312283163,-1990.2,0.00013872,2]
[361159914,1747312283173,-566.87,0.00013872,2]
[361159915,1747312283183,-400.0,0.00013905,2]
[361159916,1747312283192,-572.39,0.00013905,2]
[361159917,1747312283202,-400.0,0.00013905,2]
[361159918,1747312283211,-400.0,0.00013905,2]
[361159919,1747312283220,-400.0,0.00013905,2]
[361159920,1747312283230,-475.17,0.00013905,2]
[361159921,1747312283239,-400.0,0.00013905,2]
[361159922,1747312283250,-427.86,0.00013905,2]
[361159923,1747312283260,-531.85,0.00013905,2]
[361159924,1747312283270,-400.0,0.00013905,2]
[361159925,1747312283279,-472.87,0.00013905,2]
[361159926,1747312283288,-800.26,0.00013905,2]
[361159927,1747312283298,-400.0,0.00013905,2]
[361159928,1747312283307,-527.61,0.00013905,2]
[361159929,1747312283316,-938.56,0.00013905,2]
[361159930,1747312283326,-400.0,0.00013905,2]
[361159931,1747312283335,-542.45,0.00013905,2]
[361159932,1747312283344,-448.35,0.00013905,2]
[361159933,1747312283360,-515.02,0.00013905,2]
[361159934,1747312283369,-920.05,0.00013905,2]
[361159935,1747312283379,-619.27,0.00013905,2]
[361159936,1747312283388,-546.2,0.00013905,2]
[361159937,1747312283398,-400.0,0.00013905,2]
[361159938,1747312283407,-400.0,0.00013905,2]
[361159939,1747312283416,-400.87,0.00013905,2]
[361159940,1747312283427,-400.0,0.00013905,2]
[361159941,1747312283436,-457.69,0.00013905,2]
[361159942,1747312283445,-400.0,0.00013905,2]
[361159943,1747312283455,-704.72,0.00013905,2]
[361159944,1747312283463,-450.0,0.00013905,2]
[361159945,1747312283474,-640.67,0.00013905,2]
[361159946,1747312283484,-463.55,0.00013905,2]
[361159947,1747312283495,-475.16,0.00013905,2]
[361159948,1747312283506,-647.93,0.00013905,2]
[361159949,1747312283515,-493.97,0.00013905,2]
[361159950,1747312283525,-408.34,0.00013905,2]
[361159951,1747312283534,-400.0,0.00013905,2]
[361159952,1747312283544,-930.04,0.00013905,2]
[361159953,1747312283553,-584.59,0.00013905,2]
[361159954,1747312283562,-508.74,0.00013905,2]
[361159955,1747312283572,-400.0,0.00013905,2]
[361159956,1747312283581,-562.67,0.00013905,2]
[361159957,1747312283591,-587.33,0.00013905,2]
[361159958,1747312283604,-2186.73,0.00013905,2]
[361159959,1747312283614,-480.35,0.00013905,2]
[361159960,1747312283624,-173.0,0.00013992,2]
[361159961,1747312283633,-550.0,0.00014,2]
[361159962,1747312283643,-243.103843,0.00014,2]
[361159963,1747312283652,-5000.0,0.00014,2]
[361159964,1747312283662,-400.0,0.00014013,2]
[361159965,1747312283671,-400.0,0.00014013,2]
[361159966,1747312283681,-526.66248302,0.00014034,2]
[361159967,1747312283690,-9668.79148086,0.00014038,2]
[361159968,1747312283700,-469.89,0.0001406,2]
[361159969,1747312283709,-499.13,0.0001406,2]
[361159970,1747312283719,-2415.52,0.0001406,2]
[361159971,1747312283728,-2561.98,0.0001406,2]
[361159972,1747312283737,-400.0,0.00014061,2]
[361159973,1747312283747,-483.79,0.00014061,2]
[361159974,1747312283756,-709.94,0.00014061,2]
[361159975,1747312283765,-400.0,0.00014061,2]
[361159976,1747312283775,-494.81,0.00014061,2]
[361159977,1747312283785,-481.22,0.00014061,2]
[361159978,1747312283794,-400.0,0.00014061,2]
[361159979,1747312283804,-419.11,0.00014061,2]
[361159980,1747312283813,-624.18,0.00014061,2]
[361159981,1747312283823,-400.0,0.00014061,2]
[361159982,1747312283833,-620.77,0.00014061,2]
[361159983,1747312283842,-400.0,0.00014061,2]
[361159984,1747312283856,-400.0,0.00014061,2]
[361159985,1747312283866,-440.9,0.00014061,2]
[361159986,1747312283876,-1038.52,0.00014061,2]
[361159987,1747312283887,-881.03,0.00014061,2]
[361159988,1747312283897,-501.16,0.00014061,2]
[361159989,1747312283907,-1344.14,0.00014061,2]
[361159990,1747312283917,-451.75,0.00014061,2]
[361159991,1747312283926,-400.0,0.00014061,2]
[361159992,1747312283936,-612.11,0.00014061,2]
[361159993,1747312283945,-462.96,0.00014061,2]
[361159994,1747312283955,-477.75,0.00014061,2]
[361159995,1747312283965,-400.0,0.00014061,2]
[361159996,1747312283974,-400.0,0.00014061,2]
[361159997,1747312283984,-439.58,0.00014061,2]
[361159998,1747312283994,-400.0,0.00014061,2]
[361159999,1747312284004,-576.82,0.00014061,2]
[361160000,1747312284014,-413.48,0.00014061,2]
[361160001,1747312284024,-546.12,0.00014061,2]
[361160002,1747312284033,-416.69,0.00014061,2]
[361160003,1747312284043,-505.41,0.00014061,2]
[361160004,1747312284052,-400.0,0.00014061,2]
[361160005,1747312284062,-400.0,0.00014061,2]
[361160006,1747312284071,-465.84,0.00014061,2]
[361160007,1747312284082,-400.0,0.00014061,2]
[361160008,1747312284091,-1045.24,0.00014061,2]
[361160009,1747312284107,-472.83,0.00014061,2]
[361160010,1747312284117,-400.0,0.00014061,2]
[361160011,1747312284127,-699.13,0.00014061,2]
[361160012,1747312284136,-999.87,0.00014061,2]
[361160013,1747312284146,-1258.7,0.00014061,2]
[361160014,1747312284156,-400.0,0.00014061,2]
[361160015,1747312284165,-563.34,0.00014061,2]
[361160016,1747312284175,-871.71,0.00014061,2]
[361160017,1747312284185,-522.13,0.00014061,2]
[361160018,1747312284194,-569.36,0.00014061,2]
[361160019,1747312284204,-467.55,0.00014061,2]
[361160020,1747312284213,-558.97,0.00014061,2]
[361160021,1747312284223,-995.06,0.00014061,2]
[361160022,1747312284232,-2978.01,0.00014061,2]
[361160023,1747312284242,-961.53,0.00014061,2]
[361160024,1747312284253,-814.79,0.00014061,2]
[361160025,1747312284263,-419.74094466,0.00014061,2]
[361160026,1747312284273,-1150.65,0.00014061,2]
[361160027,1747312284283,-953.55,0.00014061,2]
[361160028,1747312284293,-945.18,0.00014061,2]
[361160029,1747312284302,-605.88,0.00014061,2]
[361160030,1747312284312,-232.47184895,0.00014061,2]
[361160031,1747312284328,-167.52815105,0.00014061,2]
[361160032,1747312284338,-793.37,0.00014061,2]
[361160033,1747312284347,-400.0,0.00014061,2]
[361160034,1747312284362,-400.0,0.00014061,2]
[361160035,1747312284373,-400.0,0.00014061,2]
[361160036,1747312284383,-565.3,0.00014061,2]
[361160037,1747312284393,-3659.41,0.00014061,2]
[361160038,1747312284402,-400.0,0.00014061,2]
[361160039,1747312284412,-400.0,0.00014061,2]
[361160040,1747312284422,-586.1,0.00014061,2]
[361160041,1747312284431,-866.92,0.00014061,2]
[361160042,1747312284441,-1133.62,0.00014061,2]
[361160043,1747312284453,-400.0,0.00014061,2]
[361160044,1747312284463,-400.0,0.00014061,2]
[361160045,1747312284477,-896.17,0.00014061,2]
[361160046,1747312284487,-3422.62,0.00014061,2]
[361160047,1747312284496,-400.0,0.00014061,2]
[361160048,1747312284506,-400.0,0.00014061,2]
[361160049,1747312284516,-1508.16,0.00014061,2]
[361160050,1747312284525,-400.0,0.00014061,2]
[361160051,1747312284535,-400.0,0.00014061,2]
[361160052,1747312284545,-2309.39,0.00014061,2]
[361160053,1747312284556,-546.0,0.00014061,2]
[361160054,1747312284565,-521.69,0.00014061,2]
[361160055,1747312284575,-982.05,0.00014061,2]
[361160056,1747312284584,-499.46,0.00014061,2]
[361160057,1747312284594,-400.0,0.00014061,2]
[361160058,1747312284605,-2191.97,0.00014061,2]
[361160059,1747312284615,-957.61,0.00014061,2]
[361160060,1747312284624,-722.35,0.00014061,2]
[361160061,1747312284633,-400.0,0.00014061,2]
[361160062,1747312284643,-2080.12,0.00014061,2]
[361160063,1747312284653,-668.17,0.00014061,2]
[361160064,1747312284663,-400.0,0.00014061,2]
[361160065,1747312284672,-400.0,0.00014061,2]
[361160066,1747312284682,-400.0,0.00014061,2]
[361160067,1747312284691,-1597.82,0.00014061,2]
[361160068,1747312284701,-1630.72,0.00014061,2]
[361160069,1747312284710,-400.0,0.00014061,2]
[361160070,1747312284720,-3843.82,0.00014061,2]
[361160071,1747312284730,-598.25,0.00014061,2]
[361160072,1747312284739,-1950.93,0.00014061,2]
[361160073,1747312284749,-457.12,0.00014061,2]
[361160074,1747312284759,-922.32,0.00014061,2]
[361160075,1747312284768,-10611.15,0.00014061,2]
[361160076,1747312284778,-400.0,0.00014061,2]
[361160077,1747312284788,-400.0,0.00014061,2]
[361160078,1747312284798,-1108.85,0.00014061,2]
[361160079,1747312284807,-501.52,0.00014061,2]
[361160080,1747312284816,-541.7,0.00014061,2]
[361160081,1747312284826,-601.85,0.00014061,2]
[361160082,1747312284836,-589.76,0.00014061,2]
[361160083,1747312284846,-29073.02,0.00014061,2]
[361160084,1747312284859,-622.13,0.00014061,2]
[361160085,1747312284869,-400.0,0.00014061,2]
[361160086,1747312284879,-3250.93,0.00014061,2]
[361160087,1747312284889,-676.29,0.00014061,2]
[361160088,1747312284898,-2267.04,0.00014061,2]
[361160089,1747312284908,-530.87,0.00014061,2]
[361160090,1747312284918,-420.88,0.00014061,2]
[361160091,1747312284927,-796.59,0.00014061,2]
[361160092,1747312284937,-419.55,0.00014062,2]
[361160093,1747312284946,-400.0,0.00014062,2]
[361160094,1747312284956,-400.0,0.00014062,2]
[361160095,1747312284965,-448.46,0.00014062,2]
[361160096,1747312284974,-190.64812482,0.00014062,2]
[361160097,1747312284983,-400.0,0.00014062,2]
[361160098,1747312284992,-400.0,0.00014062,2]
[361160099,1747312284999,-400.0,0.00014062,2]
[361160100,1747312285006,-400.0,0.00014062,2]
[361160101,1747312285014,-400.0,0.00014062,2]
[361160102,1747312285023,-572.49,0.00014062,2]
[361160103,1747312285033,-400.0,0.00014062,2]
[361160104,1747312285042,-455.44,0.00014062,2]
[361160105,1747312285052,-545.88,0.00014062,2]
[361160106,1747312285062,-400.0,0.00014062,2]
[361160107,1747312285072,-613.99,0.00014062,2]
[361160108,1747312285083,-400.0,0.00014062,2]
[361160109,1747312285092,-559.8,0.00014062,2]
[361160110,1747312285102,-7018.63,0.00014062,2]
[361160111,1747312285116,-472.72,0.00014062,2]
[361160112,1747312285126,-1647.57,0.00014062,2]
[361160113,1747312285136,-400.0,0.00014062,2]
[361160114,1747312285146,-400.0,0.00014062,2]
[361160115,1747312285155,-582.36,0.00014062,2]
[361160116,1747312285165,-400.0,0.00014062,2]
[361160117,1747312285175,-1273.86,0.00014062,2]
[361160118,1747312285185,-707.6,0.00014062,2]
[361160119,1747312285195,-400.0,0.00014062,2]
[361160120,1747312285205,-847.58,0.00014062,2]
[361160121,1747312285214,-532.14,0.00014062,2]
[361160122,1747312285225,-504.34,0.00014062,2]
[361160123,1747312285235,-539.45,0.00014062,2]
[361160124,1747312285244,-400.0,0.00014062,2]
[361160125,1747312285254,-400.0,0.00014062,2]
[361160126,1747312285265,-672.34,0.00014062,2]
[361160127,1747312285275,-310.52866465,0.00014062,2]
[361160128,1747312285285,-826.96,0.00014146,2]
[361160129,1747312285294,-400.0,0.00014146,2]
[361160130,1747312285304,-400.0,0.00014146,2]
[361160131,1747312285314,-1048.33,0.00014146,2]